fUST/lending_fUST_20240921
["ID","MTS","AMOUNT","RATE_DAILY","PERIOD"]
[338663989,1726859445794,-500.0,0.00015709,2]
[338663990,1726859445805,-519.25,0.00015709,2]
[338663991,1726859445815,-778.65,0.00015709,2]
[338663992,1726859445824,-500.0,0.00015709,2]
[338663993,1726859445834,-2123.53,0.00015709,2]
[338663994,1726859445844,-500.0,0.00015709,2]
[338663996,1726859445854,-627.47,0.00015709,2]
[338663998,1726859445864,-832.29,0.00015709,2]
[338664000,1726859445873,-500.0,0.00015709,2]
[338664002,1726859445884,-816.54,0.00015709,2]
[338664004,1726859445896,-852.29,0.00015709,2]
[338664006,1726859445907,-532.88,0.00015709,2]
[338664008,1726859445919,-500.0,0.00015709,2]
[338664009,1726859445934,-674.03,0.00015709,2]
[338664010,1726859445944,-500.0,0.00015709,2]
[338664011,1726859445954,-500.0,0.00015709,2]
[338664012,1726859445964,-500.0,0.00015709,2]
[338664013,1726859445974,-500.0,0.00015709,2]
[338664014,1726859445984,-795.67,0.00015709,2]
[338664015,1726859445994,-500.0,0.00015709,2]
[338664016,1726859446003,-500.0,0.00015709,2]
[338664017,1726859446013,-500.0,0.00015709,2]
[338664018,1726859446022,-500.0,0.00015709,2]
[338664019,1726859446032,-500.0,0.00015709,2]
[338664021,1726859446045,-559.71,0.00015709,2]
[338664023,1726859446056,-500.0,0.00015709,2]
[338664024,1726859446066,-500.0,0.00015709,2]
[338664025,1726859446077,-500.0,0.00015709,2]
[338664026,1726859446088,-500.0,0.00015709,2]
[338664027,1726859446098,-500.0,0.00015709,2]
[338664028,1726859446109,-500.0,0.00015709,2]
[338664029,1726859446119,-547.68,0.00015709,2]
[338664030,1726859446130,-500.0,0.00015709,2]
[338664031,1726859446141,-500.0,0.00015709,2]
[338664032,1726859446154,-500.0,0.00015709,2]
[338664033,1726859446163,-500.0,0.00015709,2]
[338664034,1726859446174,-500.0,0.00015709,2]
[338664035,1726859446184,-500.0,0.00015709,2]
[338664036,1726859446196,-500.0,0.00015709,2]
[338664037,1726859446207,-306.0,0.000158,2]
[338664038,1726859446218,-153.0,0.000158,2]
[338664039,1726859446228,-257.6985854,0.000158,2]
[338664040,1726859446239,-637.02842417,0.0001581,2]
[338664041,1726859446251,-1712.2547826,0.00015852,2]
[338664042,1726859446261,-985.84999999,0.00015871,2]
[338664043,1726859446273,-153.0,0.000159,2]
[338664044,1726859446283,-153.0,0.000159,2]
[338664045,1726859446293,-153.0,0.000159,2]
[338664046,1726859446304,-7139.2745635,0.00015934,2]
[338664047,1726859446316,-202.75023172,0.0001595,2]
[338664048,1726859446327,-500.0,0.0001595,2]
[338664049,1726859446338,-354.63721973,0.0001595,2]
[338664050,1726859446349,-500.0,0.0001595,2]
[338664051,1726859446360,-500.0,0.0001595,2]
[338664052,1726859446375,-490.95282485,0.0001595,2]
[338664053,1726859446384,-500.0,0.0001595,2]
[338664054,1726859446394,-500.0,0.0001595,2]
[338664055,1726859446404,-500.0,0.0001595,2]
[338664056,1726859446414,-582.60121657,0.0001595,2]
[338664057,1726859446424,-500.0,0.0001595,2]
[338664058,1726859446433,-500.0,0.0001595,2]
[338664059,1726859446443,-600.0,0.0001595,2]
[338664060,1726859446452,-200318.08626458,0.00015951,5]
[338664061,1726859446463,-130469.073513,0.00015951,2]
[338664062,1726859446473,-678.6370058,0.0001596,2]
[338664063,1726859446483,-500.0,0.00015971,2]
[338664064,1726859446493,-500.0,0.00015971,2]
[338664065,1726859446502,-504.77,0.00015971,2]
[338664066,1726859446513,-1678.1,0.00015971,2]
[338664067,1726859446524,-500.0,0.00015971,2]
[338664068,1726859446535,-500.0,0.00015971,2]
[338664069,1726859446546,-1167.94,0.00015971,2]
[338664070,1726859446555,-25128.65119537,0.00015971,2]
[338664071,1726859446889,-1957.74991629,0.00015971,2]
[338664072,1726859446912,-17667.29888834,0.00015971,2]
[338664073,1726859446922,-500.0,0.00015973,2]
[338664074,1726859446932,-500.0,0.00015973,2]
[338664075,1726859446941,-500.9561753,0.00015973,2]
[338664076,1726859446951,-500.0,0.00015973,2]
[338664077,1726859446960,-500.32467203,0.00015973,2]
[338664078,1726859446969,-625.52723501,0.00015973,2]
[338664079,1726859446978,-500.0,0.00015973,2]
[338664080,1726859446988,-500.0,0.00015973,2]
[338664081,1726859446998,-500.0,0.0001598,2]
[338664082,1726859447007,-500.0,0.0001598,2]
[338664083,1726859447017,-500.0,0.0001598,2]
[338664084,1726859447026,-500.0,0.0001598,2]
[338664085,1726859447035,-712.47,0.0001598,2]
[338664086,1726859447045,-500.0,0.0001598,2]
[338664087,1726859447054,-546.11,0.0001598,2]
[338664088,1726859447065,-500.0,0.0001598,2]
[338664089,1726859447074,-500.0,0.0001598,2]
[338664090,1726859447085,-500.0,0.0001598,2]
[338664091,1726859447096,-500.0,0.0001598,2]
[338664092,1726859447107,-708.44,0.0001598,2]
[338664093,1726859447119,-500.0,0.0001598,2]
[338664094,1726859447130,-500.0,0.0001598,2]
[338664095,1726859447141,-440.97442514,0.0001598,2]
[338664096,1726859447152,-500.0,0.0001598,2]
[338664097,1726859447161,-500.0,0.0001598,2]
[338664098,1726859447170,-500.0,0.0001598,2]
[338664099,1726859447179,-500.0,0.0001598,2]
[338664100,1726859447189,-542.42,0.0001598,2]
[338664101,1726859447199,-500.0,0.0001598,2]
[338664102,1726859447209,-500.0,0.0001598,2]
[338664103,1726859447218,-243.75288641,0.0001598,2]
[338664104,1726859447228,-500.0,0.0001598,2]
[338664105,1726859447238,-500.0,0.0001598,2]
[338664106,1726859447247,-738.79,0.0001598,2]
[338664107,1726859447256,-500.0,0.0001598,2]
[338664108,1726859447266,-500.0,0.0001598,2]
[338664109,1726859447277,-500.0,0.0001598,2]
[338664110,1726859447287,-500.0,0.0001598,2]
[338664111,1726859447297,-500.0,0.0001598,2]
[338664112,1726859447306,-5879.6,0.0001598,2]
[338664113,1726859447316,-500.0,0.0001598,2]
[338664114,1726859447325,-553.09,0.0001598,2]
[338664115,1726859447335,-500.0,0.0001598,2]
[338664116,1726859447345,-1045.51,0.0001598,2]
[338664117,1726859447366,-589.12,0.0001598,2]
[338664118,1726859447378,-504.2,0.0001598,2]
[338664119,1726859447389,-449.07,0.0001598,2]
[338664120,1726859447402,-500.0,0.0001598,2]
[338664121,1726859447412,-888.87,0.0001598,2]
[338664122,1726859447422,-500.0,0.0001598,2]
[338664123,1726859447434,-500.0,0.0001598,2]
[338664124,1726859447444,-500.0,0.0001598,2]
[338664125,1726859447455,-500.0,0.0001598,2]
[338664126,1726859447465,-551.77,0.0001598,2]
[338664127,1726859447475,-500.0,0.0001598,2]
[338664128,1726859447487,-500.0,0.0001598,2]
[338664129,1726859447498,-523.15,0.0001598,2]
[338664130,1726859447509,-500.0,0.0001598,2]
[338664131,1726859447520,-500.0,0.0001598,2]
[338664132,1726859447529,-500.0,0.0001598,2]
[338664133,1726859447540,-500.0,0.0001598,2]
[338664134,1726859447553,-500.0,0.0001598,2]
[338664135,1726859447564,-1500.97,0.00015981,2]
[338664136,1726859447574,-500.0,0.00015981,2]
[338664137,1726859447584,-500.0,0.00015981,2]
[338664138,1726859447594,-500.0,0.00015981,2]
[338664139,1726859447603,-513.69,0.00015981,2]
[338664140,1726859447614,-500.0,0.00015981,2]
[338664141,1726859447625,-500.0,0.00015981,2]
[338664142,1726859447635,-500.0,0.00015981,2]
[338664143,1726859447645,-500.0,0.00015981,2]
[338664144,1726859447656,-500.0,0.00015981,2]
[338664145,1726859447666,-500.0,0.00015981,2]
[338664146,1726859447676,-500.0,0.00015981,2]
[338664147,1726859447686,-500.0,0.00015982,2]
[338664148,1726859447696,-554.6,0.00015982,2]
[338664149,1726859447706,-961.94,0.00015982,2]
[338664150,1726859447718,-500.0,0.00015982,2]
[338664151,1726859447729,-500.0,0.00015982,2]
[338664152,1726859447739,-500.0,0.00015982,2]
[338664153,1726859447749,-200.0,0.00015982,2]
[338664154,1726859447759,-754.26,0.00015982,2]
[338664155,1726859447769,-500.0,0.00015982,2]
[338664156,1726859447779,-500.0,0.00015983,2]
[338664157,1726859447795,-500.0,0.00015983,2]
[338664158,1726859447806,-500.0,0.00015983,2]
[338664159,1726859447816,-500.0,0.00015983,2]
[338664160,1726859447827,-500.0,0.00015983,2]
[338664161,1726859447837,-500.0,0.00015983,2]
[338664162,1726859447847,-500.0,0.00015983,2]
[338664163,1726859447858,-542.6,0.00015983,2]
[338664164,1726859447867,-500.0,0.00015983,2]
[338664165,1726859447877,-500.0,0.00015983,2]
[338664166,1726859447888,-549.47,0.00015983,2]
[338664167,1726859447899,-500.0,0.00015983,2]
[338664168,1726859447911,-500.0,0.00015983,2]
[338664169,1726859447923,-500.0,0.00015983,2]
[338664170,1726859447933,-500.0,0.00015983,2]
[338664171,1726859447943,-519.25,0.00015983,2]
[338664172,1726859447954,-778.65,0.00015983,2]
[338664173,1726859447964,-500.0,0.00015983,2]
[338664174,1726859447973,-2123.53,0.00015983,2]
[338664175,1726859447983,-256.57060773,0.00015983,2]
[338664176,1726859447992,-627.47,0.00015983,2]
[338664177,1726859448003,-832.29,0.00015983,2]
[338664178,1726859448013,-500.0,0.00015983,2]
[338664179,1726859448023,-816.54,0.00015983,2]
[338664180,1726859448032,-852.29,0.00015983,2]
[338664181,1726859448042,-532.88,0.00015983,2]
[338664182,1726859448052,-500.0,0.00015983,2]
[338664183,1726859448062,-674.03,0.00015983,2]
[338664184,1726859448072,-500.0,0.00015983,2]
[338664185,1726859448081,-500.0,0.00015983,2]
[338664186,1726859448092,-500.0,0.00015983,2]
[338664187,1726859448102,-500.0,0.00015983,2]
[338664188,1726859448111,-795.67,0.00015983,2]
[338664189,1726859448121,-500.0,0.00015983,2]
[338664190,1726859448131,-500.0,0.00015983,2]
[338664191,1726859448141,-500.0,0.00015983,2]
[338664192,1726859448151,-500.0,0.00015983,2]
[338664193,1726859448162,-500.0,0.00015983,2]
[338664194,1726859448172,-559.71,0.00015983,2]
[338664195,1726859448182,-500.0,0.00015983,2]
[338664196,1726859448191,-514.06724973,0.00015983,2]
[338664197,1726859448201,-500.0,0.00015983,2]
[338664198,1726859448211,-500.0,0.00015983,2]
[338664199,1726859448220,-500.0,0.00015983,2]
[338664200,1726859448230,-500.0,0.00015983,2]
[338664201,1726859448239,-547.68,0.00015983,2]
[338664202,1726859448249,-500.0,0.00015983,2]
[338664203,1726859448260,-500.0,0.00015983,2]
[338664204,1726859448269,-500.0,0.00015983,2]
[338664205,1726859448279,-500.0,0.00015983,2]
[338664206,1726859448289,-500.0,0.00015983,2]
[338664207,1726859448298,-500.0,0.00015983,2]
[338664208,1726859448308,-500.0,0.00015983,2]
[338664209,1726859448317,-209.6738331,0.00016,2]
[338664210,1726859448327,-153.0,0.00016,2]
[338664211,1726859448336,-150.0,0.00016062,2]
[338664212,1726859448345,-1000.0,0.000162,2]
[338664213,1726859448354,-1000.0,0.000162,2]
[338664214,1726859448363,-1000.0,0.000162,2]
[338664215,1726859448373,-500.0,0.00016245,2]
[338664216,1726859448383,-504.77,0.00016245,2]
[338664217,1726859448392,-1678.1,0.00016245,2]
[338664218,1726859448403,-500.0,0.00016245,2]
[338664219,1726859448413,-1167.94,0.00016245,2]
[338664220,1726859448423,-17794.61514321,0.00016245,2]
[338664221,1726859448438,-985.85,0.00016245,2]
[338664222,1726859448449,-25973.23485679,0.00016245,2]
[338664223,1726859448459,-500.0,0.00016254,2]
[338664224,1726859448469,-500.0,0.00016254,2]
[338664225,1726859448478,-500.0,0.00016254,2]
[338664226,1726859448487,-500.0,0.00016254,2]
[338664227,1726859448497,-712.47,0.00016254,2]
[338664228,1726859448506,-500.0,0.00016254,2]
[338664229,1726859448516,-546.11,0.00016254,2]
[338664230,1726859448526,-500.0,0.00016254,2]
[338664231,1726859448535,-500.0,0.00016254,2]
[338664232,1726859448545,-500.0,0.00016254,2]
[338664233,1726859448555,-500.0,0.00016254,2]
[338664234,1726859448564,-708.44,0.00016254,2]
[338664235,1726859448574,-500.0,0.00016254,2]
[338664236,1726859448583,-500.0,0.00016254,2]
[338664237,1726859448593,-500.0,0.00016254,2]
[338664238,1726859448603,-500.0,0.00016254,2]
[338664239,1726859448612,-305.57261942,0.00016254,2]
[338664240,1726859448621,-500.0,0.00016254,2]
[338664241,1726859448631,-542.42,0.00016254,2]
[338664242,1726859448640,-500.0,0.00016254,2]
[338664243,1726859448650,-500.0,0.00016254,2]
[338664244,1726859448660,-500.0,0.00016254,2]
[338664245,1726859448670,-500.0,0.00016254,2]
[338664246,1726859448680,-738.79,0.00016254,2]
[338664247,1726859448690,-500.0,0.00016254,2]
[338664248,1726859448699,-500.0,0.00016254,2]
[338664249,1726859448709,-500.0,0.00016254,2]
[338664250,1726859448721,-151.0,0.00016254,2]
[338664251,1726859448731,-500.0,0.00016254,2]
[338664252,1726859448740,-500.0,0.00016254,2]
[338664253,1726859448750,-187.631552,0.00016254,2]
[338664254,1726859448759,-5879.6,0.00016254,2]
[338664255,1726859448770,-303.557336,0.00016254,2]
[338664256,1726859448779,-303.557336,0.00016254,2]
[338664257,1726859448789,-500.0,0.00016254,2]
[338664258,1726859448799,-151.0,0.00016254,2]
[338664259,1726859448809,-553.09,0.00016254,2]
[338664260,1726859448818,-500.0,0.00016254,2]
[338664261,1726859448828,-151.0,0.00016254,2]
[338664262,1726859448837,-151.0,0.00016254,2]
[338664263,1726859448846,-1045.51,0.00016254,2]
[338664264,1726859448856,-589.12,0.00016254,2]
[338664265,1726859448865,-151.0,0.00016254,2]
[338664266,1726859448875,-504.2,0.00016254,2]
[338664267,1726859448885,-151.0,0.00016254,2]
[338664268,1726859448894,-462.743167,0.00016254,2]
[338664269,1726859448904,-462.743167,0.00016254,2]
[338664270,1726859448913,-151.0,0.00016254,2]
[338664271,1726859448922,-245.642898,0.00016254,2]
[338664272,1726859448932,-245.642898,0.00016254,2]
[338664273,1726859448941,-500.0,0.00016254,2]
[338664274,1726859448950,-151.0,0.00016254,2]
[338664275,1726859448959,-151.0,0.00016254,2]
[338664276,1726859449168,-888.87,0.00016254,2]
[338664277,1726859449179,-151.0,0.00016254,2]
[338664278,1726859449188,-270.7267634,0.00016254,2]
[338664279,1726859449198,-500.0,0.00016254,2]
[338664280,1726859449207,-151.0,0.00016254,2]
[338664281,1726859449216,-500.0,0.00016254,2]
[338664282,1726859449225,-152.90267714,0.00016254,2]
[338664283,1726859449235,-234.446295,0.00016254,2]
[338664284,1726859449244,-234.446295,0.00016254,2]
[338664285,1726859449253,-551.77,0.00016254,2]
[338664286,1726859449262,-151.0,0.00016254,2]
[338664287,1726859449271,-189.0415356,0.00016254,2]
[338664288,1726859449281,-500.0,0.00016254,2]
[338664289,1726859449291,-500.0,0.00016254,2]
[338664290,1726859449302,-151.0,0.00016254,2]
[338664291,1726859449312,-500.0,0.00016254,2]
[338664292,1726859449322,-500.0,0.00016254,2]
[338664293,1726859449332,-500.0,0.00016254,2]
[338664294,1726859449343,-500.0,0.00016254,2]
[338664295,1726859449353,-1500.97,0.00016255,2]
[338664296,1726859449362,-500.0,0.00016255,2]
[338664297,1726859449371,-500.0,0.00016255,2]
[338664298,1726859449381,-500.0,0.00016255,2]
[338664299,1726859449391,-513.69,0.00016255,2]
[338664300,1726859449402,-500.0,0.00016255,2]
[338664301,1726859449412,-500.0,0.00016255,2]
[338664302,1726859449421,-500.0,0.00016255,2]
[338664303,1726859449431,-500.0,0.00016255,2]
[338664304,1726859449441,-500.0,0.00016255,2]
[338664305,1726859449451,-500.0,0.00016255,2]
[338664306,1726859449461,-500.0,0.00016255,2]
[338664307,1726859449471,-500.0,0.00016256,2]
[338664308,1726859449481,-554.6,0.00016256,2]
[338664309,1726859449491,-961.94,0.00016256,2]
[338664310,1726859449501,-500.0,0.00016256,2]
[338664311,1726859449510,-500.0,0.00016256,2]
[338664312,1726859449520,-500.0,0.00016256,2]
[338664313,1726859449530,-200.0,0.00016256,2]
[338664314,1726859449539,-754.26,0.00016256,2]
[338664315,1726859449550,-500.0,0.00016256,2]
[338664316,1726859449559,-500.0,0.00016257,2]
[338664317,1726859449568,-500.0,0.00016257,2]
[338664318,1726859449578,-500.0,0.00016257,2]
[338664319,1726859449587,-500.0,0.00016257,2]
[338664320,1726859449597,-500.0,0.00016257,2]
[338664321,1726859449606,-622.57702672,0.00016257,2]
[338664322,1726859449615,-500.0,0.00016257,2]
[338664323,1726859449624,-542.6,0.00016257,2]
[338664324,1726859449634,-500.0,0.00016257,2]
[338664325,1726859449643,-500.0,0.00016257,2]
[338664326,1726859449653,-549.47,0.00016257,2]
[338664327,1726859449662,-500.0,0.00016257,2]
[338664328,1726859449671,-500.0,0.00016257,2]
[338664329,1726859449681,-500.0,0.00016257,2]
[338664330,1726859449695,-500.0,0.00016257,2]
[338664331,1726859449706,-519.25,0.00016257,2]
[338664332,1726859449718,-778.65,0.00016257,2]
[338664333,1726859449732,-500.0,0.00016257,2]
[338664334,1726859449742,-2123.53,0.00016257,2]
[338664335,1726859449752,-627.47,0.00016257,2]
[338664336,1726859449764,-832.29,0.00016257,2]
[338664337,1726859449773,-500.0,0.00016257,2]
[338664338,1726859449782,-816.54,0.00016257,2]
[338664339,1726859449793,-852.29,0.00016257,2]
[338664340,1726859449802,-532.88,0.00016257,2]
[338664341,1726859449812,-500.0,0.00016257,2]
[338664342,1726859449821,-674.03,0.00016257,2]
[338664343,1726859449831,-500.0,0.00016257,2]
[338664344,1726859449843,-500.0,0.00016257,2]
[338664345,1726859449851,-500.0,0.00016257,2]
[338664346,1726859449860,-500.0,0.00016257,2]
[338664347,1726859449870,-795.67,0.00016257,2]
[338664348,1726859449879,-500.0,0.00016257,2]
[338664349,1726859449888,-500.0,0.00016257,2]
[338664350,1726859449898,-500.0,0.00016257,2]
[338664351,1726859449909,-500.0,0.00016257,2]
[338664352,1726859449919,-500.0,0.00016257,2]
[338664353,1726859449928,-559.71,0.00016257,2]
[338664354,1726859449937,-500.0,0.00016257,2]
[338664355,1726859449946,-500.0,0.00016257,2]
[338664356,1726859449956,-500.0,0.00016257,2]
[338664357,1726859449965,-201.77895128,0.00016257,2]
[338664358,1726859449975,-500.0,0.00016257,2]
[338664359,1726859449984,-547.68,0.00016257,2]
[338664360,1726859449994,-500.0,0.00016257,2]
[338664361,1726859450002,-500.0,0.00016257,2]
[338664362,1726859450012,-500.0,0.00016257,2]
[338664363,1726859450021,-385.3464707,0.00016257,2]
[338664364,1726859450031,-500.0,0.00016257,2]
[338664365,1726859450040,-500.0,0.00016257,2]
[338664366,1726859450049,-500.0,0.00016257,2]
[338664367,1726859450058,-2069.62109077,0.00016269,2]
[338664368,1726859450068,-151.0,0.00016269,2]
[338664369,1726859450078,-500.0,0.00016273,2]
[338664370,1726859450088,-500.0,0.00016273,2]
[338664371,1726859450098,-500.0,0.00016273,2]
[338664372,1726859450108,-254.20645201,0.00016273,2]
[338664373,1726859450119,-210.90288632,0.00016273,2]
[338664374,1726859450129,-500.0,0.00016273,2]
[338664375,1726859450141,-360.1957471,0.00016273,2]
[338664376,1726859450150,-190.31030363,0.00016299,2]
[338664377,1726859450160,-3132.32179407,0.00016299,2]
[338664378,1726859450169,-1000.0,0.000163,2]
[338664379,1726859450178,-151.330472,0.000163,2]
[338664380,1726859450187,-600.0,0.00016397,2]
[338664381,1726859450196,-573.400374,0.000164,2]
[338664382,1726859450205,-573.400374,0.000164,2]
[338664383,1726859450215,-151.0,0.000164,2]
[338664384,1726859450225,-151.0,0.000164,2]
[338664385,1726859450235,-151.0,0.000164,2]
[338664386,1726859450246,-419.459843,0.000164,2]
[338664387,1726859450257,-151.0,0.000164,2]
[338664388,1726859450267,-151.0,0.000164,2]
[338664389,1726859450277,-3000.0,0.000164,2]
[338664390,1726859450286,-563.041937,0.000164,2]
[338664391,1726859450297,-563.041937,0.000164,2]
[338664392,1726859450307,-223.815822,0.000164,2]
[338664393,1726859450316,-151.0,0.000164,2]
[338664394,1726859450326,-223.815822,0.000164,2]
[338664395,1726859450336,-214.401636,0.000164,2]
[338664396,1726859450345,-151.0,0.000164,2]
[338664397,1726859450355,-214.401636,0.000164,2]
[338664398,1726859450364,-151.0,0.000164,2]
[338664399,1726859450374,-151.0,0.000164,2]
[338664400,1726859450386,-218.97285,0.000164,2]
[338664401,1726859450396,-218.97285,0.000164,2]
[338664402,1726859450408,-3000.0,0.0001641,2]
[338664403,1726859450422,-3000.0,0.0001642,2]
[338664404,1726859450434,-160.0,0.00016422,2]
[338664405,1726859450445,-151.0,0.00016423,2]
[338664406,1726859450455,-151.0,0.00016423,2]
[338664407,1726859450465,-151.0,0.00016423,2]
[338664408,1726859450475,-3000.0,0.0001643,2]
[338664409,1726859450484,-8000.0,0.00016437,2]
[338664410,1726859450493,-202.42,0.00016438,2]
[338664411,1726859450502,-202.42,0.00016438,2]
[338664412,1726859450512,-202.42,0.00016438,2]
[338664413,1726859450523,-3000.0,0.0001644,2]
[338664414,1726859450534,-151.0,0.00016443,2]
[338664415,1726859450543,-573.400374,0.00016443,2]
[338664416,1726859450553,-573.400374,0.00016443,2]
[338664417,1726859450562,-154.742121,0.00016443,2]
[338664418,1726859450571,-151.0,0.00016443,2]
[338664419,1726859450581,-184.96654,0.00016443,2]
[338664420,1726859450590,-419.459843,0.00016443,2]
[338664421,1726859450599,-151.0,0.00016443,2]
[338664422,1726859450608,-151.0,0.00016443,2]
[338664423,1726859450617,-563.041937,0.00016443,2]
[338664424,1726859450626,-563.041937,0.00016443,2]
[338664425,1726859450636,-223.815822,0.00016443,2]
[338664426,1726859450645,-151.0,0.00016443,2]
[338664427,1726859450654,-223.815822,0.00016443,2]
[338664428,1726859450664,-151.0,0.00016443,2]
[338664429,1726859450673,-214.401636,0.00016443,2]
[338664430,1726859450683,-151.0,0.00016443,2]
[338664431,1726859450692,-214.401636,0.00016443,2]
[338664432,1726859450701,-218.97285,0.00016443,2]
[338664433,1726859450710,-218.97285,0.00016443,2]
[338664434,1726859450720,-960.195691,0.00016443,2]
[338664435,1726859450731,-960.195691,0.00016443,2]
[338664436,1726859450740,-151.0,0.00016443,2]
[338664437,1726859450750,-68873.23754818,0.00016443,2]
[338664438,1726859450759,-3000.0,0.0001645,2]
[338664439,1726859450769,-3000.0,0.0001646,2]
[338664440,1726859450779,-678.6370058,0.0001646,2]
[338664441,1726859450788,-3000.0,0.0001647,2]
[338664442,1726859450799,-500.0,0.00016473,2]
[338664443,1726859450809,-500.0,0.00016473,2]
[338664444,1726859450818,-500.0,0.00016473,2]
[338664445,1726859450828,-500.0,0.00016473,2]
[338664446,1726859450838,-3000.0,0.0001648,2]
[338664447,1726859450847,-3000.0,0.0001649,2]
[338664448,1726859450857,-1000.0,0.000165,2]
[338664449,1726859450867,-1000.0,0.000165,2]
[338664450,1726859450876,-3000.0,0.000165,2]
[338664451,1726859450885,-3000.0,0.0001651,2]
[338664452,1726859450894,-1564.664,0.00016518,2]
[338664453,1726859450903,-191.12889684,0.00016518,2]
[338664454,1726859450913,-500.0,0.00016519,2]
[338664455,1726859450923,-504.77,0.00016519,2]
[338664456,1726859450933,-1678.1,0.00016519,2]
[338664457,1726859450943,-500.0,0.00016519,2]
[338664458,1726859450953,-1167.94,0.00016519,2]
[338664459,1726859450963,-44753.7,0.00016519,2]
[338664460,1726859450972,-151.0,0.0001652,2]
[338664461,1726859450981,-3000.0,0.0001652,2]
[338664462,1726859450991,-151.0,0.0001652,2]
[338664463,1726859450999,-151.0,0.0001652,2]
[338664464,1726859451009,-151.0,0.0001652,2]
[338664465,1726859451018,-151.0,0.00016522,2]
[338664466,1726859451028,-151.0,0.00016522,2]
[338664467,1726859451037,-151.0,0.00016522,2]
[338664468,1726859451046,-151.0,0.00016522,2]
[338664469,1726859451056,-500.0,0.00016528,2]
[338664470,1726859451065,-500.0,0.00016528,2]
[338664471,1726859451075,-500.0,0.00016528,2]
[338664472,1726859451085,-500.0,0.00016528,2]
[338664473,1726859451097,-712.47,0.00016528,2]
[338664474,1726859451107,-500.0,0.00016528,2]
[338664475,1726859451118,-546.11,0.00016528,2]
[338664476,1726859451129,-500.0,0.00016528,2]
[338664477,1726859451138,-500.0,0.00016528,2]
[338664478,1726859451147,-500.0,0.00016528,2]
[338664479,1726859451156,-202.42,0.00016528,2]
[338664480,1726859451166,-500.0,0.00016528,2]
[338664481,1726859451175,-708.44,0.00016528,2]
[338664482,1726859451184,-500.0,0.00016528,2]
[338664483,1726859451195,-500.0,0.00016528,2]
[338664484,1726859451205,-500.0,0.00016528,2]
[338664485,1726859451215,-500.0,0.00016528,2]
[338664486,1726859451226,-500.0,0.00016528,2]
[338664487,1726859451236,-542.42,0.00016528,2]
[338664488,1726859451247,-500.0,0.00016528,2]
[338664489,1726859451257,-484.76136773,0.00016528,2]
[338664490,1726859451266,-500.0,0.00016528,2]
[338664491,1726859451275,-500.0,0.00016528,2]
[338664492,1726859451285,-738.79,0.00016528,2]
[338664493,1726859451294,-500.0,0.00016528,2]
[338664494,1726859451303,-500.0,0.00016528,2]
[338664495,1726859451314,-500.0,0.00016528,2]
[338664496,1726859451325,-151.0,0.00016528,2]
[338664497,1726859451335,-500.0,0.00016528,2]